fUST/lending_fUST_20250210
["ID","MTS","AMOUNT","RATE_DAILY","PERIOD"]
[352525729,1739151060379,-1501.60771545,0.00013699,2]
[352525730,1739151060389,-1501.60771545,0.00013699,2]
[352525731,1739151060399,-1501.60771545,0.00013699,2]
[352525732,1739151060408,-1501.60771545,0.00013699,2]
[352525733,1739151060418,-1501.60771545,0.00013699,2]
[352525734,1739151060428,-1501.60771545,0.00013699,2]
[352525735,1739151060438,-1501.60771545,0.00013699,2]
[352525736,1739151060447,-1501.60771545,0.00013699,2]
[352525737,1739151060457,-1501.60771545,0.00013699,2]
[352525738,1739151060466,-1501.60771545,0.00013699,2]
[352525739,1739151060475,-1501.60771545,0.00013699,2]
[352525740,1739151060486,-1501.60771545,0.00013699,2]
[352525741,1739151060495,-1501.60771545,0.00013699,2]
[352525742,1739151060505,-1501.60771545,0.00013699,2]
[352525743,1739151060514,-1501.60771545,0.00013699,2]
[352525744,1739151060524,-1501.60771545,0.00013699,2]
[352525745,1739151060534,-1501.60771545,0.00013699,2]
[352525746,1739151060543,-1501.60771545,0.00013699,2]
[352525747,1739151060554,-1501.60771545,0.00013699,2]
[352525748,1739151060564,-1501.60771545,0.00013699,2]
[352525749,1739151060573,-1501.60771545,0.00013699,2]
[352525750,1739151060583,-1501.60771545,0.00013699,2]
[352525751,1739151060593,-1501.60771545,0.00013699,2]
[352525752,1739151060603,-1501.60771545,0.00013699,2]
[352525753,1739151060612,-1501.60771545,0.00013699,2]
[352525754,1739151060622,-1501.60771545,0.00013699,2]
[352525755,1739151060632,-1501.60771545,0.00013699,2]
[352525756,1739151060642,-1501.60771545,0.00013699,2]
[352525757,1739151060652,-1501.60771545,0.00013699,2]
[352525758,1739151060662,-1501.60771545,0.00013699,2]
[352525759,1739151060673,-1501.60771545,0.00013699,2]
[352525760,1739151060682,-1501.60771545,0.00013699,2]
[352525761,1739151060692,-1501.60771545,0.00013699,2]
[352525762,1739151060702,-1501.60771545,0.00013699,2]
[352525763,1739151060713,-1501.60771545,0.00013699,2]
[352525764,1739151060723,-1501.60771545,0.00013699,2]
[352525765,1739151060733,-1501.60771545,0.00013699,2]
[352525766,1739151060743,-1501.60771545,0.00013699,2]
[352525767,1739151060755,-1501.60771545,0.00013699,2]
[352525768,1739151060769,-1501.60771545,0.00013699,2]
[352525769,1739151060778,-1501.60771545,0.00013699,2]
[352525770,1739151060787,-1501.60771545,0.00013699,2]
[352525771,1739151060797,-1501.60771545,0.00013699,2]
[352525772,1739151060806,-1501.60771545,0.00013699,2]
[352525773,1739151060815,-1501.60771545,0.00013699,2]
[352525774,1739151060824,-1455.40440114,0.00013699,2]
[352525775,1739151060833,-1455.40440114,0.00013699,2]
[352525776,1739151060843,-1455.40440114,0.00013699,2]
[352525777,1739151060853,-1455.40440114,0.00013699,2]
[352525778,1739151060866,-1455.40440114,0.00013699,2]
[352525779,1739151060875,-1455.40440114,0.00013699,2]
[352525780,1739151060885,-1455.40440114,0.00013699,2]
[352525781,1739151060895,-1455.40440114,0.00013699,2]
[352525782,1739151060907,-1455.40440114,0.00013699,2]
[352525783,1739151060917,-1455.40440114,0.00013699,2]
[352525784,1739151060928,-1455.40440114,0.00013699,2]
[352525785,1739151060937,-1455.40440114,0.00013699,2]
[352525786,1739151060947,-1455.40440114,0.00013699,2]
[352525787,1739151060956,-1455.40440114,0.00013699,2]
[352525788,1739151060966,-1455.40440114,0.00013699,2]
[352525789,1739151060975,-1455.40440114,0.00013699,2]
[352525790,1739151060985,-1455.40440114,0.00013699,2]
[352525791,1739151060995,-1455.40440114,0.00013699,2]
[352525792,1739151061004,-1455.40440114,0.00013699,2]
[352525793,1739151061013,-1455.40440114,0.00013699,2]
[352525794,1739151061023,-1455.40440114,0.00013699,2]
[352525795,1739151061032,-1455.40440114,0.00013699,2]
[352525796,1739151061041,-1455.40440114,0.00013699,2]
[352525797,1739151061051,-1455.40440114,0.00013699,2]
[352525798,1739151061061,-1455.40440114,0.00013699,2]
[352525799,1739151061070,-1455.4044011,0.00013699,2]
[352525800,1739151061081,-151.0,0.00013699,2]
[352525801,1739151061090,-151.0,0.00013699,2]
[352525802,1739151061100,-151.0,0.00013699,2]
[352525803,1739151061109,-165.24734546,0.000137,2]
[352525804,1739151061119,-165.24734546,0.000137,2]
[352525805,1739151061128,-165.24,0.000137,2]
[352525806,1739151061137,-165.24734546,0.000137,2]
[352525807,1739151061147,-165.24734546,0.000137,2]
[352525808,1739151061156,-165.24734546,0.000137,2]
[352525809,1739151061166,-165.24734546,0.000137,2]
[352525810,1739151061176,-165.24734546,0.000137,2]
[352525811,1739151061185,-165.24734546,0.000137,2]
[352525812,1739151061195,-165.24,0.000137,2]
[352525813,1739151061205,-1500.0,0.00013723,2]
[352525814,1739151061215,-896.14889017,0.00013723,2]
[352525815,1739151061224,-1004.53299692,0.00013771,2]
[352525816,1739151061234,-1500.0,0.00013773,2]
[352525817,1739151061243,-500.0,0.00013778,2]
[352525818,1739151061252,-500.0,0.00013778,2]
[352525819,1739151061261,-160.0,0.00013834,2]
[352525820,1739151061335,-160.0,0.00013834,2]
[352525821,1739151061344,-4494.83447727,0.00013835,5]
[352525822,1739151061353,-26160.38911205,0.00013835,5]
[352525823,1739151061363,-151.0,0.00013835,2]
[352525824,1739151061372,-151.0,0.00013835,2]
[352525825,1739151061381,-808.3,0.00013835,2]
[352525826,1739151061390,-500.0,0.00013835,2]
[352525827,1739151061399,-500.0,0.00013835,2]
[352525828,1739151061408,-990.28,0.00013835,2]
[352525829,1739151061418,-500.0,0.00013835,2]
[352525830,1739151061427,-521.51,0.00013835,2]
[352525831,1739151061437,-1758.43,0.00013835,2]
[352525832,1739151061447,-515.56,0.00013835,2]
[352525833,1739151061458,-3404.15,0.00013835,2]
[352525834,1739151061469,-8700.3,0.00013835,2]
[352525835,1739151061479,-738.06,0.00013835,2]
[352525836,1739151061488,-1187.14,0.00013835,2]
[352525837,1739151061497,-3219.97,0.00013835,2]
[352525838,1739151061507,-584.62,0.00013835,2]
[352525839,1739151061516,-1808.21,0.00013835,2]
[352525840,1739151061526,-3658.6,0.00013835,2]
[352525841,1739151061536,-1029.68,0.00013835,2]
[352525842,1739151061545,-3294.42,0.00013835,2]
[352525843,1739151061554,-675.69,0.00013835,2]
[352525844,1739151061564,-1215.15,0.00013835,2]
[352525845,1739151061581,-500.0,0.00013835,2]
[352525846,1739151061590,-1260.56,0.00013835,2]
[352525847,1739151061599,-11029.28,0.00013835,2]
[352525848,1739151061609,-1232.12,0.00013835,2]
[352525849,1739151061618,-1230.99,0.00013835,2]
[352525850,1739151061627,-404.63,0.00013835,2]
[352525851,1739151061636,-151.0,0.00013835,2]
[352525852,1739151061650,-20893.0,0.00013835,2]
[352525853,1739151061659,-712.7,0.00013835,2]
[352525854,1739151061668,-151.0,0.00013835,2]
[352525855,1739151061677,-1125.75,0.00013835,2]
[352525856,1739151061687,-1830.91,0.00013835,2]
[352525857,1739151061696,-2183.81,0.00013835,2]
[352525858,1739151061705,-600.83,0.00013835,2]
[352525859,1739151061715,-500.0,0.00013835,2]
[352525860,1739151061724,-978.35,0.00013835,2]
[352525861,1739151061734,-503.34,0.00013835,2]
[352525862,1739151061743,-671.12,0.00013835,2]
[352525863,1739151061753,-931.46,0.00013835,2]
[352525864,1739151061762,-636.85,0.00013835,2]
[352525865,1739151061771,-151.0,0.00013835,2]
[352525866,1739151061780,-937.2,0.00013835,2]
[352525867,1739151061790,-578.15,0.00013835,2]
[352525868,1739151061799,-151.0,0.00013835,2]
[352525869,1739151061808,-805.57,0.00013835,2]
[352525870,1739151061817,-550.53,0.00013835,2]
[352525871,1739151061827,-1335.8,0.00013835,2]
[352525872,1739151061837,-151.602746,0.00013835,2]
[352525873,1739151061846,-662.11,0.00013835,2]
[352525874,1739151061856,-543.51,0.00013835,2]
[352525875,1739151061868,-2887.24,0.00013835,2]
[352525876,1739151061878,-1098.13716015,0.00013863,2]
[352525877,1739151061887,-160.0,0.00013971,2]
[352525878,1739151061896,-160.0,0.00013971,2]
[352525879,1739151061907,-808.3,0.00013972,2]
[352525880,1739151061916,-500.0,0.00013972,2]
[352525881,1739151061926,-500.0,0.00013972,2]
[352525882,1739151061935,-990.28,0.00013972,2]
[352525883,1739151061947,-584.5,0.00013972,2]
[352525884,1739151061958,-151.0,0.00013972,2]
[352525885,1739151061967,-521.51,0.00013972,2]
[352525886,1739151061977,-1758.43,0.00013972,2]
[352525887,1739151061986,-515.56,0.00013972,2]
[352525888,1739151061996,-178.584237,0.00013972,2]
[352525889,1739151062006,-178.584237,0.00013972,2]
[352525890,1739151062015,-152.949574,0.00013972,2]
[352525891,1739151062024,-152.949574,0.00013972,2]
[352525892,1739151062034,-151.0,0.00013972,2]
[352525893,1739151062044,-3404.15,0.00013972,2]
[352525894,1739151062054,-8700.3,0.00013972,2]
[352525895,1739151062063,-738.06,0.00013972,2]
[352525896,1739151062073,-1187.14,0.00013972,2]
[352525897,1739151062082,-3219.97,0.00013972,2]
[352525898,1739151062093,-584.62,0.00013972,2]
[352525899,1739151062102,-1808.21,0.00013972,2]
[352525900,1739151062112,-3658.6,0.00013972,2]
[352525901,1739151062121,-1029.68,0.00013972,2]
[352525902,1739151062131,-460.19912,0.00013972,2]
[352525903,1739151062140,-460.19912,0.00013972,2]
[352525904,1739151062149,-3294.42,0.00013972,2]
[352525905,1739151062158,-675.69,0.00013972,2]
[352525906,1739151062168,-1215.15,0.00013972,2]
[352525907,1739151062177,-590.04675695,0.00013972,2]
[352525908,1739151062186,-1260.56,0.00013972,2]
[352525909,1739151062195,-11029.28,0.00013972,2]
[352525910,1739151062205,-1232.12,0.00013972,2]
[352525911,1739151062214,-1230.99,0.00013972,2]
[352525912,1739151062223,-20893.0,0.00013972,2]
[352525913,1739151062233,-712.7,0.00013972,2]
[352525914,1739151062242,-1125.75,0.00013972,2]
[352525915,1739151062252,-1830.91,0.00013972,2]
[352525916,1739151062261,-2183.81,0.00013972,2]
[352525917,1739151062271,-600.83,0.00013972,2]
[352525918,1739151062280,-151.0,0.00013972,2]
[352525919,1739151062289,-151.0,0.00013972,2]
[352525920,1739151062298,-248.05,0.00013972,2]
[352525921,1739151062308,-978.35,0.00013972,2]
[352525922,1739151062317,-503.34,0.00013972,2]
[352525923,1739151062326,-671.12,0.00013972,2]
[352525924,1739151062336,-931.46,0.00013972,2]
[352525925,1739151062345,-636.85,0.00013972,2]
[352525926,1739151062355,-937.2,0.00013972,2]
[352525927,1739151062364,-0.71135539,0.00013972,2]
[352525928,1739151062381,-577.43864461,0.00013972,2]
[352525929,1739151062390,-805.57,0.00013972,2]
[352525930,1739151062399,-550.53,0.00013972,2]
[352525931,1739151062409,-1335.8,0.00013972,2]
[352525932,1739151062418,-662.11,0.00013972,2]
[352525933,1739151062428,-543.51,0.00013972,2]
[352525934,1739151062437,-2887.24,0.00013972,2]
[352525935,1739151062447,-406.15355597,0.0001399,2]
[352525936,1739151062456,-3270.76,0.00014,2]
[352525937,1739151062465,-429.0,0.00014,4]
[352525938,1739151062474,-728.145,0.00014067,2]
[352525939,1739151062483,-179.739,0.00014067,2]
[352525940,1739151062492,-160.0,0.00014108,2]
[352525941,1739151062501,-160.0,0.00014108,2]
[352525942,1739151062511,-160.0,0.00014108,2]
[352525943,1739151062520,-808.34718841,0.00014109,2]
[352525944,1739151062593,-218.81,0.00014109,2]
[352525945,1739151062603,-385.92,0.00014109,2]
[352525946,1739151062613,-990.48145813,0.00014109,2]
[352525947,1739151062623,-521.67,0.00014109,2]
[352525948,1739151062632,-1758.48419009,0.00014109,2]
[352525949,1739151062642,-515.70313587,0.00014109,2]
[352525950,1739151062652,-3404.31675819,0.00014109,2]
[352525951,1739151062662,-4472.3114181,0.00014109,2]
[352525952,1739151062683,-566.72796838,0.00014109,2]
[352525953,1739151062694,-757.60189852,0.00014109,2]
[352525954,1739151062942,-500.0,0.00010958,2]
[352525955,1739151062951,-500.0,0.00010958,2]
[352525956,1739151062961,-500.0,0.00011095,2]
[352525957,1739151062970,-500.0,0.00011095,2]
[352525958,1739151062979,-326.60443781,0.00011095,2]
[352525959,1739151062988,-500.0,0.00011232,2]
[352525960,1739151062997,-287.16800956,0.00011232,2]
[352525961,1739151063053,-216.73,0.00010959,2]
[352525962,1739151063063,-212.83199044,0.00011232,2]
[352525963,1739151063073,-500.0,0.00011369,2]
[352525964,1739151063083,-500.0,0.00011369,2]
[352525965,1739151063093,-500.0,0.00011506,2]
[352525966,1739151063102,-500.0,0.00011506,2]
[352525967,1739151063112,-500.0,0.00011643,2]
[352525968,1739151063121,-500.0,0.00011643,2]
[352525969,1739151063131,-500.0,0.0001178,2]
[352525970,1739151063140,-500.0,0.0001178,2]
[352525971,1739151063149,-500.0,0.00011917,2]
[352525972,1739151063158,-500.0,0.00011917,2]
[352525973,1739151063168,-500.0,0.00012054,2]
[352525974,1739151063178,-500.0,0.00012054,2]
[352525975,1739151063188,-500.0,0.00012191,2]
[352525976,1739151063197,-513.51382133,0.00012191,2]
[352525977,1739151063207,-515.26721682,0.00012328,2]
[352525978,1739151063217,-151.0,0.00013698,2]
[352525979,1739151063226,-151.0,0.00013972,2]
[352525980,1739151063236,-2903.788715,0.00014109,2]
[352525981,1739151063245,-738.11,0.00014109,2]
[352525982,1739151063255,-3220.09276072,0.00014109,2]
[352525983,1739151063264,-236.20475362,0.00014109,2]
[352525984,1739151063276,-348.51234651,0.00014109,2]
[352525985,1739151063286,-1808.36859601,0.00014109,2]
[352525986,1739151063296,-2569.35948533,0.00014109,2]
[352525987,1739151063309,-1089.25051467,0.00014109,2]
[352525988,1739151063319,-1029.9,0.00014109,2]
[352525989,1739151063329,-3294.58417278,0.00014109,2]
[352525990,1739151063338,-675.78913495,0.00014109,2]
[352525991,1739151063348,-1215.31478696,0.00014109,2]
[352525992,1739151063358,-1260.68128124,0.00014109,2]
[352525993,1739151063367,-11029.42528298,0.00014109,2]
[352525994,1739151063377,-1232.35260018,0.00014109,2]
[352525995,1739151063386,-1231.04517285,0.00014109,2]
[352525996,1739151063396,-20893.1937,0.00014109,2]
[352525997,1739151063406,-712.76239561,0.00014109,2]
[352525998,1739151063415,-1125.85321266,0.00014109,2]
[352525999,1739151063427,-1831.02,0.00014109,2]
[352526000,1739151063437,-2183.8115528,0.00014109,2]
[352526001,1739151063447,-600.92126301,0.00014109,2]
[352526002,1739151063456,-978.45519767,0.00014109,2]
[352526003,1739151063465,-503.36196504,0.00014109,2]
[352526004,1739151063475,-671.3336781,0.00014109,2]
[352526005,1739151063486,-931.59362304,0.00014109,2]
[352526006,1739151063496,-636.90209373,0.00014109,2]
[352526007,1739151063505,-937.29288228,0.00014109,2]
[352526008,1739151063515,-578.35996893,0.00014109,2]
[352526009,1739151063524,-805.77428206,0.00014109,2]
[352526010,1739151063533,-550.65471465,0.00014109,2]
[352526011,1739151063543,-1335.9,0.00014109,2]
[352526012,1739151063553,-662.25509605,0.00014109,2]
[352526013,1739151063563,-543.52252228,0.00014109,2]
[352526014,1739151063572,-2887.28916034,0.00014109,2]
[352526015,1739151063581,-151.0,0.000142,2]
[352526016,1739151063591,-1098.13716015,0.00014408,2]
[352526017,1739151063600,-3603.49920595,0.00014444,2]
[352526018,1739151063609,-7135.0,0.000145,2]
[352526019,1739151063618,-151.0,0.000148,2]
[352526020,1739151063627,-2500.0,0.00014871,2]
[352526021,1739151063637,-1098.13716015,0.00014954,2]
[352526022,1739151063646,-3556.66,0.00014958,2]
[352526023,1739151063719,-151.0,0.00015,2]
[352526024,1739151063729,-9050.48006489,0.00015,2]
[352526025,1739151063739,-334787.63603135,0.00015,30]
[352526026,1739151063750,-498.5283615,0.0001502,2]
[352526027,1739151063759,-800.0,0.00015029,2]
[352526028,1739151063769,-166.0,0.00015068,2]
[352526029,1739151063779,-2000.0,0.0001507,2]
[352526030,1739151063788,-3603.49920595,0.00015341,2]
[352526031,1739151063799,-1973.0,0.00015344,2]
[352526032,1739151063808,-542.52,0.00015344,2]
[352526033,1739151063817,-2297.0,0.00015344,2]
[352526034,1739151063827,-151.0,0.000154,2]
[352526035,1739151063836,-1098.13716015,0.00015499,2]
[352526036,1739151063846,-429.0,0.000155,5]
[352526037,1739151063856,-1038.76424228,0.000155,2]
[352526038,1739151063869,-714.0,0.00015674,2]
[352526039,1739151063879,-160.6065,0.00015887,2]
[352526040,1739151063888,-1961.23575772,0.00016,2]
[352526041,1739151063898,-151.0,0.00016,2]
[352526042,1739151063909,-1098.13716015,0.00016044,2]
[352526043,1739151063920,-781.57,0.00016164,2]
[352526044,1739151063930,-3603.49920595,0.00016237,2]
[352526045,1739151063940,-154.5151656,0.00016356,2]
[352526046,1739151063951,-426.4090738,0.00016356,2]
[352526047,1739151063962,-153.0,0.00016356,2]
[352526048,1739151063971,-306.0,0.00016356,2]
[352526049,1739151063981,-800.0,0.00016399,2]
[352526050,1739151063991,-500.0,0.00016438,2]
[352526051,1739151064001,-403.44338513,0.00016438,2]
[352526052,1739151064010,-500.0,0.00016438,2]
[352526053,1739151064019,-151.0,0.00016438,2]
[352526054,1739151064028,-1000.0,0.00016438,7]
[352526055,1739151064038,-600.0,0.00016532,2]
[352526056,1739151064047,-224.31,0.00016553,2]
[352526057,1739151064058,-1098.13716015,0.00016589,2]
[352526058,1739151064068,-151.0,0.000166,2]
[352526059,1739151064078,-2000.0,0.00016607,2]
[352526060,1739151064087,-13266.52937459,0.00016611,2]
[352526061,1739151064097,-303.0,0.000167,2]
[352526062,1739151064107,-600.0,0.00016704,2]
[352526063,1739151064116,-272.72621062,0.0001671,2]
[352526064,1739151064126,-156.0,0.00016715,2]
[352526065,1739151064135,-156.0,0.00016715,2]
[352526066,1739151064145,-156.0,0.00016715,2]
[352526067,1739151064154,-156.0,0.00016715,2]
[352526068,1739151064163,-156.0,0.00016715,2]
[352526069,1739151064174,-156.0,0.00016715,2]
[352526070,1739151064183,-283.47,0.00016715,2]
[352526071,1739151064192,-160.6065,0.0001674,6]
[352526072,1739151064201,-161.0,0.0001676,2]
[352526073,1739151064211,-217.01,0.0001676,2]
[352526074,1739151064220,-160.0,0.0001676,2]
[352526075,1739151064229,-160.0,0.0001676,2]
[352526076,1739151064239,-160.0,0.0001676,2]
[352526077,1739151064248,-160.0,0.0001676,2]
[352526078,1739151064257,-160.0,0.0001676,2]
[352526079,1739151064266,-160.0,0.0001676,2]
[352526080,1739151064276,-160.0,0.0001676,2]
[352526081,1739151064285,-160.0,0.0001676,2]
[352526082,1739151064295,-160.0,0.0001676,2]
[352526083,1739151064304,-156.0,0.0001676,2]
[352526084,1739151064313,-156.0,0.0001676,2]
[352526085,1739151064323,-156.0,0.0001676,2]
[352526086,1739151064334,-156.0,0.0001676,2]
[352526087,1739151064344,-156.0,0.0001676,2]
[352526088,1739151064354,-156.0,0.0001676,2]
[352526089,1739151064364,-156.0,0.0001676,2]
[352526090,1739151064373,-156.0,0.0001676,2]
[352526091,1739151064383,-156.0,0.0001676,2]
[352526092,1739151064392,-156.0,0.0001676,2]
[352526093,1739151064402,-156.0,0.0001676,2]
[352526094,1739151064411,-156.0,0.0001676,2]
[352526095,1739151064421,-156.0,0.0001676,2]
[352526096,1739151064430,-156.0,0.0001676,2]
[352526097,1739151064439,-156.0,0.0001676,2]
[352526098,1739151064449,-156.0,0.0001676,2]
[352526099,1739151064459,-156.0,0.0001676,2]
[352526100,1739151064469,-156.0,0.0001676,2]
[352526101,1739151064479,-185.92,0.0001676,2]
[352526102,1739151064488,-444882.97770078,0.000168,2]
[352526105,1739151337805,4178.0,0.00016,120]
[352526106,1739151932131,-300.0,9.967e-05,2]
[352526107,1739151932153,-776.58106293,9.968e-05,2]
[352526108,1739152026102,-300.0,9.967e-05,2]
[352526109,1739152026124,-3449.35754444,9.968e-05,2]
[352526110,1739152054089,-450.0,9.968e-05,2]
[352526113,1739152156115,-7086.83386023,9.968e-05,2]
[352526114,1739152161135,-199.34789677,9.968e-05,2]
[352526115,1739152161165,-7.81180983,9.968e-05,2]
[352526116,1739152163136,-372.26094801,0.00010685,2]
[352526117,1739152174128,-27.73905199,0.00010685,2]
[352526118,1739152174265,-164.38479262,0.00010858,2]
[352526163,1739152232892,-72.87767377,0.00010858,2]
[352526165,1739152232902,-1142.66111603,0.000109,2]
[352526227,1739152238585,-669.82,0.000109,2]
[352526228,1739152238602,-1280.93880801,0.000109,2]
[352526229,1739152238611,-300.0,0.00010957,2]
[352526230,1739152238621,-500.0,0.00010958,2]
[352526231,1739152238630,-500.0,0.00010958,2]
[352526232,1739152238640,-503.11827468,0.00010958,2]
[352526233,1739152238650,-500.0,0.00010958,2]
[352526234,1739152238659,-500.0,0.00010958,2]
[352526235,1739152238669,-500.0,0.00010958,2]
[352526236,1739152238679,-500.0,0.00010958,2]
[352526237,1739152238688,-500.0,0.00010958,2]
[352526238,1739152238698,-500.0,0.00010958,2]
[352526240,1739152238707,-500.0,0.00010958,2]
[352526242,1739152238717,-377.04562486,0.00010958,2]
[352526243,1739152238726,-501.90547418,0.00010958,2]
[352526245,1739152238735,-500.0,0.00010958,2]
[352526246,1739152238744,-500.0,0.00010958,2]
[352526248,1739152238754,-502.01238107,0.00010958,2]
[352526249,1739152238763,-500.0,0.00010958,2]
[352526250,1739152238772,-536.34081141,0.00010958,2]
[352526251,1739152238782,-501.82769055,0.00010958,2]
[352526252,1739152238791,-500.0,0.00010958,2]
[352526253,1739152238805,-500.0,0.00010958,2]
[352526254,1739152238815,-606.49992745,0.00010958,2]
[352526255,1739152238824,-500.0,0.00010958,2]
[352526256,1739152238834,-295.2441697,0.00010958,2]
[352526257,1739152238844,-301.21532777,0.00010958,2]
[352526258,1739152238853,-500.0,0.00010958,2]
[352526259,1739152238863,-500.0,0.00010958,2]
[352526260,1739152238873,-502.67727954,0.00010958,2]
[352526261,1739152238882,-500.0,0.00010958,2]
[352526262,1739152238891,-500.0,0.00010958,2]
[352526263,1739152238901,-503.01910502,0.00010958,2]
[352526264,1739152238910,-500.0,0.00010958,2]
[352526265,1739152238919,-500.0,0.00010958,2]
[352526266,1739152238929,-500.0,0.00010958,2]
[352526267,1739152238938,-500.0,0.00010958,2]
[352526268,1739152238948,-500.0,0.00010958,2]
[352526269,1739152238958,-501.77890362,0.00010958,2]
[352526270,1739152238967,-524.2737174,0.00010958,2]
[352526271,1739152238977,-500.0,0.00010958,2]
[352526272,1739152238986,-500.0,0.00010958,2]
[352526273,1739152238995,-409.9540365,0.00010958,2]
[352526274,1739152239005,-401.98145756,0.00010958,2]
[352526275,1739152239014,-501.73638242,0.00010958,2]
[352526276,1739152239024,-434.55444125,0.00010958,2]
[352526277,1739152239033,-501.72965101,0.00010958,2]
[352526278,1739152239042,-501.36965841,0.00010958,2]
[352526279,1739152239053,-500.0,0.00010958,2]
[352526280,1739152239062,-500.0,0.00010958,2]
[352526281,1739152239071,-635.09,0.00010958,2]
[352526282,1739152239081,-500.0,0.00010958,2]
[352526283,1739152239090,-501.71564661,0.00010958,2]
[352526284,1739152239100,-500.0,0.00010958,2]
[352526285,1739152239109,-500.0,0.00010958,2]
[352526286,1739152239118,-500.0,0.00010958,2]
[352526287,1739152239127,-500.0,0.00010958,2]
[352526288,1739152239136,-500.0,0.00010958,2]
[352526289,1739152239146,-502.96705758,0.00010958,2]
[352526290,1739152239155,-500.0,0.00010958,2]
[352526291,1739152239164,-501.07680681,0.00010958,2]
[352526292,1739152239173,-501.98984264,0.00010958,2]
[352526293,1739152239182,-502.72541824,0.00010958,2]
[352526294,1739152239191,-501.35194165,0.00010958,2]
[352526295,1739152239200,-500.0,0.00010958,2]
[352526296,1739152239209,-273.1012504,0.00010958,2]
[352526297,1739152239219,-500.0,0.00010958,2]
[352526298,1739152239227,-501.77475659,0.00010958,2]
[352526299,1739152239237,-500.0,0.00010958,2]
[352526300,1739152239246,-501.49277034,0.00010958,2]
[352526301,1739152239256,-500.0,0.00010958,2]
[352526302,1739152239265,-500.0,0.00010958,2]
[352526303,1739152239278,-500.0,0.00010958,2]
[352526304,1739152239288,-500.0,0.00010958,2]
[352526305,1739152239298,-500.0,0.00010958,2]
[352526306,1739152239310,-500.0,0.00010958,2]
[352526307,1739152239319,-604.59,0.00010958,2]
[352526308,1739152239329,-500.0,0.00010958,2]
[352526309,1739152239338,-502.43072118,0.00010958,2]
[352526310,1739152239348,-500.0,0.00010958,2]
[352526311,1739152239357,-504.41489618,0.00010958,2]
[352526312,1739152239366,-500.0,0.00010958,2]
[352526313,1739152239376,-500.0,0.00010958,2]
[352526314,1739152239385,-500.0,0.00010958,2]
[352526315,1739152239394,-500.0,0.00010958,2]
[352526316,1739152239404,-500.0,0.00010958,2]
[352526317,1739152239413,-608.55,0.00010958,2]
[352526318,1739152239422,-969.86,0.00010958,2]
[352526319,1739152239431,-502.20313917,0.00010958,2]
[352526320,1739152239440,-418.41950004,0.00010958,2]
[352526321,1739152239450,-500.0,0.00010958,2]
[352526322,1739152239459,-500.0,0.00010958,2]
[352526323,1739152239469,-500.0,0.00010958,2]
[352526324,1739152239478,-500.0,0.00010958,2]
[352526325,1739152239488,-500.0,0.00010958,2]
[352526326,1739152239497,-500.0,0.00010958,2]
[352526327,1739152239506,-500.0,0.00010958,2]
[352526328,1739152239515,-501.46499881,0.00010958,2]
[352526329,1739152239525,-500.0,0.00010958,2]
[352526330,1739152239534,-500.0,0.00010958,2]
[352526331,1739152239543,-500.0,0.00010958,2]
[352526332,1739152239556,-501.91697951,0.00010958,2]
[352526333,1739152239565,-500.0,0.00010958,2]
[352526334,1739152239575,-613.54,0.00010958,2]
[352526335,1739152239584,-1077.78,0.00010958,2]
[352526336,1739152239594,-500.0,0.00010958,2]
[352526337,1739152239603,-500.0,0.00010958,2]
[352526338,1739152239612,-503.29816256,0.00010958,2]
[352526339,1739152239622,-500.0,0.00010958,2]
[352526340,1739152239631,-500.0,0.00010958,2]
[352526341,1739152239641,-500.0,0.00010958,2]
[352526342,1739152239650,-500.0,0.00010958,2]